[Event "Championnat du monde jeunes U12F"]
[Date "2024.11.23"]
[White "Sabou, Stefania Theodora"]
[Black "Sri Darshini T"]
[WhiteElo "1736"]
[BlackElo "1681"]
[Round "8.17"]
[Result "1/2-1/2"]
[TimeControl "5400+30"]

1. c4 {[%clk 1:30:56]} 1... e5 {[%clk 1:30:55]} 2. Nc3 {[%clk 1:31:19]} 2... Nc6
{[%clk 1:31:21]} 3. g3 {[%clk 1:31:41]} 3... g6 {[%clk 1:31:42]} 4. Bg2 {[%clk
1:32:01]} 4... Bg7 {[%clk 1:32:07]} 5. e4 {[%clk 1:32:25]} 5... d6 {[%clk
1:32:32]} 6. Nge2 {[%clk 1:32:50]} 6... f5 {[%clk 1:32:57]} 7. d3 {[%clk
1:33:06]} 7... Nf6 {[%clk 1:33:21]} 8. O-O {[%clk 1:33:24]} 8... O-O {[%clk
1:33:45]} 9. Nd5 {[%clk 1:33:25]} 9... Be6 {[%clk 1:34:02]} 10. Bg5 {[%clk
1:32:44]} 10... Qd7 {[%clk 1:34:26]} 11. Qd2 {[%clk 1:31:50]} 11... Rf7 {[%clk
1:34:39]} 12. Rae1 {[%clk 1:27:36]} 12... Raf8 {[%clk 1:31:16]} 13. f3 {[%clk
1:25:07]} 13... Nh5 {[%clk 1:26:05]} 14. b4 {[%clk 1:19:11]} 14... Nd8 {[%clk
1:22:03]} 15. f4 {[%clk 1:07:25]} 15... fxe4 {[%clk 1:10:30]} 16. dxe4 {[%clk
1:06:15]} 16... exf4 {[%clk 1:06:24]} 17. Nexf4 {[%clk 1:05:23]} 17... Nxf4
{[%clk 1:06:04]} 18. Bxf4 {[%clk 1:04:39]} 18... Nc6 {[%clk 1:04:30]} 19. b5
{[%clk 0:55:46]} 19... Ne5 {[%clk 1:04:06]} 20. Bxe5 {[%clk 0:55:49]} 20... Bxe5
{[%clk 1:02:34]} 21. Qd3 {[%clk 0:50:45]} 21... c6 {[%clk 0:56:48]} 22. Ne3
{[%clk 0:49:03]} 22... Qd8 {[%clk 0:50:53]} 23. bxc6 {[%clk 0:47:22]} 23... bxc6
{[%clk 0:51:20]} 24. Rxf7 {[%clk 0:33:07]} 24... Rxf7 {[%clk 0:51:24]} 25. c5
Qa5 {[%clk 0:50:25]} 26. Rc1 {[%clk 0:24:12]} 26... Rd7 {[%clk 0:37:18]} 27.
cxd6 {[%clk 0:15:43]} 27... Rxd6 {[%clk 0:37:25]} 28. Qe2 {[%clk 0:13:41]} 28...
Rd2 {[%clk 0:28:31]} 29. Qf3 {[%clk 0:12:28]} 29... Qb6 {[%clk 0:25:14]} 30. Kh1
{[%clk 0:12:45]} 30... Rd3 {[%clk 0:25:13]} 31. Rf1 {[%clk 0:11:40]} 31... Qc5
{[%clk 0:25:16]} 32. Bh3 {[%clk 0:10:34]} 32... Bc4 {[%clk 0:09:53]} 33. Rc1
{[%clk 0:08:04]} 33... Bc3 {[%clk 0:08:41]} 34. Bf1 {[%clk 0:06:50]} 34... Qxe3
{[%clk 0:06:26]} 35. Qxe3 {[%clk 0:06:52]} 35... Rxe3 {[%clk 0:06:54]} 36. Bxc4+
{[%clk 0:06:58]} 36... Kg7 {[%clk 0:06:10]} 37. Bb3 {[%clk 0:06:56]} 37... c5
{[%clk 0:05:52]} 38. Bd5 {[%clk 0:07:09]} 38... Bb4 {[%clk 0:05:08]} 39. Rc2
{[%clk 0:06:21]} 39... Rf3 {[%clk 0:03:03]} 40. Kg2 {[%clk 0:06:34]} 40... Rf8
{[%clk 0:03:09]} 41. e5 {[%clk 0:04:50]} 41... Rd8 {[%clk 0:03:02]} 42. Bc4
{[%clk 0:04:54]} 42... Rd2+ {[%clk 0:01:52]} 43. Rxd2 {[%clk 0:05:14]} 43...
Bxd2 {[%clk 0:02:20]} 44. Kf3 {[%clk 0:05:32]} 44... Kf8 {[%clk 0:02:17]} 45.
Ke4 {[%clk 0:05:37]} 45... Ke7 {[%clk 0:02:18]} 46. Kd5 {[%clk 0:05:28]} 46...
Bc3 {[%clk 0:02:32]} 47. e6 {[%clk 0:04:51]} 47... Bb4 {[%clk 0:02:29]} 48. g4
{[%clk 0:04:12]} 48... h5 {[%clk 0:01:40]} 49. h3 {[%clk 0:03:21]} 49... hxg4
{[%clk 0:01:31]} 50. hxg4 {[%clk 0:03:49]} 50... g5 {[%clk 0:01:20]} 51. Kc6
{[%clk 0:02:58]} 51... a5 {[%clk 0:01:24]} 52. a4 {[%clk 0:02:52]} 52... Ba3
{[%clk 0:01:36]} 53. Kd5 {[%clk 0:02:44]} 53... Ke8 54. Ke4 1/2-1/2

[Variant "Standard"]
[Site "Europe Echecs"]

[Event "Championnat du monde jeunes U12F"]
[Date "2024.11.23"]
[White "Li, Peishan"]
[Black "Telyuk, Anastasiya"]
[WhiteElo "1729"]
[BlackElo "1603"]
[Round "8.18"]
[Result "1-0"]
[TimeControl "5400+30"]

1. e4 {[%clk 1:30:57]} 1... c5 {[%clk 1:30:56]} 2. Nf3 {[%clk 1:31:24]} 2... a6
{[%clk 1:31:15]} 3. d4 {[%clk 1:31:47]} 3... cxd4 {[%clk 1:31:40]} 4. Nxd4
{[%clk 1:32:14]} 4... Nf6 {[%clk 1:32:03]} 5. Nc3 {[%clk 1:32:40]} 5... e5
{[%clk 1:32:27]} 6. Nb3 {[%clk 1:32:48]} 6... Bb4 {[%clk 1:32:19]} 7. Bg5 {[%clk
1:25:41]} 7... Bxc3+ {[%clk 1:31:16]} 8. bxc3 {[%clk 1:26:06]} 8... O-O {[%clk
1:31:10]} 9. Qd6 {[%clk 1:16:33]} 9... Re8 {[%clk 1:28:01]} 10. Bxf6 {[%clk
1:16:52]} 10... Qxf6 {[%clk 1:28:11]} 11. Qxf6 {[%clk 1:17:11]} 11... gxf6
{[%clk 1:28:33]} 12. O-O-O {[%clk 1:16:10]} 12... Nc6 {[%clk 1:23:22]} 13. Be2
{[%clk 1:12:40]} 13... Rd8 {[%clk 1:21:39]} 14. Rd6 {[%clk 1:12:54]} 14... Kg7
{[%clk 1:20:55]} 15. Rhd1 {[%clk 1:13:07]} 15... Rg8 {[%clk 1:14:48]} 16. Nc5
{[%clk 1:09:49]} 16... Kh8 {[%clk 1:13:29]} 17. Rxf6 {[%clk 1:05:20]} 17... Rxg2
{[%clk 1:12:21]} 18. Rxf7 {[%clk 1:05:40]} 18... b6 {[%clk 1:07:35]} 19. Bc4
{[%clk 1:01:08]} 19... Rg8 {[%clk 1:06:04]} 20. Nxd7 {[%clk 1:00:45]} 20... Ra7
{[%clk 1:03:47]} 21. Nxb6 {[%clk 0:58:16]} 21... Rxf7 {[%clk 1:03:49]} 22. Bxf7
{[%clk 0:58:42]} 22... Rf8 {[%clk 1:04:07]} 23. Bd5 {[%clk 0:56:38]} 23... Ne7
{[%clk 1:04:26]} 24. Nxc8 {[%clk 0:56:35]} 24... Nxc8 {[%clk 1:04:47]} 25. Be6
{[%clk 0:56:42]} 25... Ne7 {[%clk 1:05:05]} 26. Rd7 {[%clk 0:56:42]} 26... Ng6
{[%clk 1:05:23]} 27. Bf5 {[%clk 0:57:04]} 27... Rf6 {[%clk 1:05:29]} 28. Kd2
{[%clk 0:52:39]} 28... Rc6 {[%clk 1:05:08]} 29. Bxg6 {[%clk 0:51:53]} 29... Rxg6
{[%clk 1:05:29]} 30. Rd5 {[%clk 0:51:58]} 30... Re6 {[%clk 1:05:40]} 31. c4
{[%clk 0:52:17]} 31... Kg7 {[%clk 1:06:03]} 32. c5 {[%clk 0:52:37]} 32... Kf7
{[%clk 1:06:17]} 33. Rd7+ {[%clk 0:52:53]} 33... Ke8 {[%clk 1:06:40]} 34. Rxh7
{[%clk 0:53:00]} 34... Rc6 {[%clk 1:07:02]} 35. Ra7 {[%clk 0:53:03]} 35... Kd8
{[%clk 1:07:17]} 36. Kd3 {[%clk 0:53:23]} 36... Rh6 {[%clk 1:07:32]} 37. Kc4
{[%clk 0:52:10]} 37... Rxh2 {[%clk 1:07:52]} 38. Rf7 {[%clk 0:51:39]} 38... Rh6
{[%clk 1:07:59]} 39. Kd5 {[%clk 0:52:02]} 39... Rh5 {[%clk 1:08:19]} 40. Rf5
{[%clk 0:52:10]} 40... Rh7 {[%clk 1:08:40]} 41. Rxe5 {[%clk 0:52:16]} 41... Rf7
{[%clk 1:09:01]} 42. Rf5 {[%clk 0:52:40]} 42... Rd7+ {[%clk 1:09:23]} 43. Kc4
{[%clk 0:53:00]} 43... Kc7 {[%clk 1:09:43]} 44. f4 {[%clk 0:53:01]} 44... Rd1
{[%clk 1:09:55]} 45. Rf7+ {[%clk 0:53:22]} 45... Kd8 {[%clk 1:10:17]} 46. e5
{[%clk 0:53:42]} 46... Re1 {[%clk 1:10:40]} 47. Kd5 {[%clk 0:53:56]} 47... Rd1+
{[%clk 1:11:02]} 48. Ke6 {[%clk 0:54:00]} 48... Rf1 {[%clk 1:11:23]} 49. f5
{[%clk 0:54:24]} 49... Rh1 {[%clk 1:11:43]} 50. f6 {[%clk 0:54:49]} 50... Re1
{[%clk 1:12:02]} 51. Rd7+ {[%clk 0:55:08]} 51... Kc8 {[%clk 1:12:24]} 52. f7
{[%clk 0:55:27]} 52... Rxe5+ {[%clk 1:12:46]} 53. Kxe5 {[%clk 0:55:54]} 53...
Kxd7 {[%clk 1:13:07]} 54. f8=Q {[%clk 0:56:16]} 54... Kc6 {[%clk 1:13:28]} 55.
c4 {[%clk 0:56:42]} 55... a5 {[%clk 1:13:52]} 56. Qd6+ {[%clk 0:57:06]} 56...
Kb7 {[%clk 1:14:16]} 57. Qb6+ {[%clk 0:57:30]} 57... Kc8 {[%clk 1:14:40]} 58. c6
{[%clk 0:57:56]} 58... a4 {[%clk 1:15:06]} 59. Qb7+ {[%clk 0:58:22]} 59... Kd8
{[%clk 1:15:31]} 60. Qd7# {[%clk 0:58:47]} 1-0

[Variant "Standard"]
[Site "Europe Echecs"]

[Event "Championnat du monde jeunes U12F"]
[Date "2024.11.23"]
[White "Chovanec, Alice"]
[Black "Xikmatkhonova, Mokhinur"]
[WhiteElo "1694"]
[BlackElo "1726"]
[Round "8.19"]
[Result "0-1"]
[TimeControl "5400+30"]

1. d4 {[%clk 1:30:55]} 1... Nf6 {[%clk 1:30:55]} 2. Nf3 {[%clk 1:30:53]} 2... d5
{[%clk 1:31:08]} 3. c4 {[%clk 1:31:13]} 3... e6 {[%clk 1:31:32]} 4. Bf4 {[%clk
1:30:26]} 4... c5 {[%clk 1:29:51]} 5. e3 {[%clk 1:29:44]} 5... Nc6 {[%clk
1:29:27]} 6. Nc3 {[%clk 1:29:12]} 6... Be7 {[%clk 1:28:12]} 7. h3 {[%clk
1:27:11]} 7... a6 {[%clk 1:28:12]} 8. a4 {[%clk 1:26:20]} 8... b6 {[%clk
1:26:53]} 9. cxd5 {[%clk 1:25:28]} 9... Nxd5 {[%clk 1:22:33]} 10. Bh2 {[%clk
1:21:49]} 10... Bb7 {[%clk 1:12:52]} 11. Be2 {[%clk 1:17:16]} 11... O-O {[%clk
1:05:14]} 12. O-O {[%clk 1:15:21]} 12... cxd4 {[%clk 0:59:42]} 13. Nxd4 {[%clk
1:10:14]} 13... Bf6 {[%clk 0:46:25]} 14. Nxd5 {[%clk 1:07:42]} 14... exd5 {[%clk
0:46:03]} 15. Nxc6 {[%clk 1:04:56]} 15... Bxc6 {[%clk 0:46:31]} 16. Rc1 {[%clk
1:04:35]} 16... Qd7 {[%clk 0:45:02]} 17. b3 {[%clk 1:03:31]} 17... b5 {[%clk
0:42:58]} 18. Qc2 {[%clk 1:00:00]} 18... Bb7 {[%clk 0:40:38]} 19. Bg4 {[%clk
0:56:06]} 19... Qe7 {[%clk 0:36:38]} 20. Qc7 {[%clk 0:51:32]} 20... Bc8 {[%clk
0:32:55]} 21. Bf3 {[%clk 0:46:13]} 21... Be6 {[%clk 0:28:22]} 22. Qb6 {[%clk
0:44:56]} 22... Qa7 {[%clk 0:26:44]} 23. Qxa7 {[%clk 0:44:21]} 23... Rxa7 {[%clk
0:27:11]} 24. axb5 {[%clk 0:44:38]} 24... axb5 {[%clk 0:27:09]} 25. Rc5 {[%clk
0:41:30]} 25... d4 {[%clk 0:23:56]} 26. Rxb5 {[%clk 0:41:09]} 26... d3 {[%clk
0:23:24]} 27. Rd1 {[%clk 0:40:26]} 27... Rd8 {[%clk 0:23:37]} 28. Be4 {[%clk
0:31:18]} 28... d2 {[%clk 0:16:35]} 29. Kf1 {[%clk 0:24:27]} 29... Bc8 {[%clk
0:13:12]} 30. Kg1 {[%clk 0:16:05]} 30... Ba6 {[%clk 0:11:28]} 31. Ra5 {[%clk
0:13:07]} 31... Be2 {[%clk 0:10:11]} 32. Rxa7 {[%clk 0:12:51]} 32... Bxd1 {[%clk
0:10:39]} 33. Bc7 {[%clk 0:10:24]} 33... Bxb3 {[%clk 0:07:01]} 34. Bf3 {[%clk
0:10:45]} 34... d1=Q+ {[%clk 0:06:51]} 35. Bxd1 {[%clk 0:11:10]} 35... Rxd1+
{[%clk 0:07:18]} 36. Kh2 {[%clk 0:11:36]} 36... h5 {[%clk 0:06:46]} 37. Rb7
{[%clk 0:11:49]} 37... Be6 {[%clk 0:06:15]} 38. e4 {[%clk 0:10:57]} 38... Rd7
{[%clk 0:04:55]} 39. Rb8+ {[%clk 0:11:08]} 39... Kh7 {[%clk 0:05:16]} 40. e5
{[%clk 0:10:45]} 40... Rxc7 {[%clk 0:02:19]} 41. exf6 {[%clk 0:11:09]} 41...
gxf6 {[%clk 0:02:47]} 42. Rb2 {[%clk 0:11:23]} 42... f5 {[%clk 0:03:01]} 43. Rd2
{[%clk 0:11:45]} 43... Rd7 {[%clk 0:02:29]} 44. Rb2 {[%clk 0:12:05]} 44... Rd8
{[%clk 0:02:27]} 45. Rc2 {[%clk 0:12:02]} 45... Kg6 {[%clk 0:02:50]} 46. Rb2
{[%clk 0:12:25]} 46... Kf6 {[%clk 0:00:55]} 47. Rc2 {[%clk 0:12:41]} 47... Rc8
{[%clk 0:00:37]} 48. Rd2 {[%clk 0:13:07]} 48... Rg8 {[%clk 0:00:55]} 49. Rd1
{[%clk 0:13:13]} 49... Ra8 {[%clk 0:00:55]} 50. Kg3 {[%clk 0:12:58]} 50... Kg5
{[%clk 0:00:51]} 51. Kh2 {[%clk 0:12:59]} 51... Ra2 {[%clk 0:01:07]} 52. Kg1
{[%clk 0:13:04]} 52... f4 {[%clk 0:01:15]} 53. f3 {[%clk 0:13:06]} 53... Kh4
{[%clk 0:01:19]} 54. Rd8 {[%clk 0:12:51]} 54... f6 {[%clk 0:01:21]} 55. Rd1
{[%clk 0:13:03]} 55... Kg3 {[%clk 0:01:40]} 56. Re1 {[%clk 0:13:09]} 56... Rxg2+
{[%clk 0:01:57]} 57. Kh1 {[%clk 0:13:24]} 57... Bxh3 {[%clk 0:01:21]} 58. Rg1
{[%clk 0:13:34]} 58... Rxg1+ {[%clk 0:01:25]} 59. Kxg1 {[%clk 0:13:59]} 59...
Kxf3 {[%clk 0:01:43]} 60. Kh2 {[%clk 0:14:26]} 60... Ke2 {[%clk 0:01:50]} 61.
Kxh3 {[%clk 0:14:52]} 61... f3 {[%clk 0:02:11]} 62. Kg3 {[%clk 0:14:49]} 62...
f2 {[%clk 0:02:36]} 63. Kh2 {[%clk 0:15:13]} 63... f1=Q {[%clk 0:02:27]} 64. Kg3
{[%clk 0:15:39]} 64... Qf3+ {[%clk 0:02:44]} 65. Kh2 {[%clk 0:16:03]} 65... Qg4
{[%clk 0:03:07]} 66. Kh1 {[%clk 0:16:29]} 66... Kf2 {[%clk 0:03:28]} 67. Kh2
{[%clk 0:16:57]} 67... Qg2# {[%clk 0:03:43]} 0-1

[Variant "Standard"]
[Site "Europe Echecs"]

[Event "Championnat du monde jeunes U12F"]
[Date "2024.11.23"]
[White "Sevastsyanchuk, Anastasiya"]
[Black "Bohatyrova, Mariia"]
[WhiteElo "1595"]
[BlackElo "1722"]
[Round "8.20"]
[Result "1-0"]
[TimeControl "5400+30"]

1. e4 {[%clk 1:30:59]} 1... c5 {[%clk 1:30:55]} 2. Nf3 {[%clk 1:31:19]} 2... d6
{[%clk 1:31:21]} 3. d4 {[%clk 1:31:39]} 3... cxd4 {[%clk 1:31:49]} 4. Nxd4
{[%clk 1:31:55]} 4... Nf6 {[%clk 1:32:12]} 5. Nc3 {[%clk 1:32:06]} 5... g6
{[%clk 1:32:29]} 6. Be3 {[%clk 1:32:20]} 6... Nc6 {[%clk 1:32:41]} 7. f3 {[%clk
1:32:37]} 7... h5 {[%clk 1:33:03]} 8. Bc4 {[%clk 1:32:53]} 8... Nxd4 {[%clk
1:33:10]} 9. Bxd4 {[%clk 1:33:05]} 9... Bh6 {[%clk 1:33:13]} 10. Bxf6 {[%clk
1:21:52]} 10... exf6 {[%clk 1:32:29]} 11. Nb5 {[%clk 1:22:03]} 11... Qa5+ {[%clk
0:56:57]} 12. c3 {[%clk 1:20:51]} 12... O-O {[%clk 0:56:05]} 13. Qxd6 {[%clk
1:05:38]} 13... a6 {[%clk 0:47:33]} 14. Nc7 {[%clk 1:05:16]} 14... Ra7 {[%clk
0:47:57]} 15. Nd5 {[%clk 1:05:28]} 15... Qd8 {[%clk 0:25:46]} 16. Nxf6+ {[%clk
1:04:49]} 16... Kg7 {[%clk 0:25:58]} 17. Qxd8 {[%clk 1:04:45]} 17... Rxd8 {[%clk
0:26:24]} 18. Nd5 {[%clk 1:05:08]} 18... b5 {[%clk 0:25:59]} 19. Bb3 {[%clk
1:05:22]} 19... f5 {[%clk 0:25:24]} 20. O-O {[%clk 1:05:22]} 20... fxe4 {[%clk
0:22:59]} 21. fxe4 {[%clk 1:05:48]} 21... Re8 {[%clk 0:21:55]} 22. Rae1 {[%clk
1:04:57]} 22... Be6 {[%clk 0:17:56]} 23. Nf6 {[%clk 1:04:39]} 23... Ree7 {[%clk
0:18:08]} 24. e5 {[%clk 1:01:27]} 24... Bxb3 {[%clk 0:15:00]} 25. axb3 {[%clk
0:57:14]} 25... Re6 {[%clk 0:15:13]} 26. Nd5 {[%clk 0:57:32]} 26... Rd7 {[%clk
0:14:24]} 27. c4 {[%clk 0:57:48]} 27... bxc4 {[%clk 0:14:47]} 28. bxc4 {[%clk
0:58:15]} 28... Rb7 {[%clk 0:14:30]} 29. Rf6 {[%clk 0:58:21]} 29... Rxf6 {[%clk
0:12:59]} 30. exf6+ {[%clk 0:58:42]} 30... Kf8 {[%clk 0:08:21]} 31. b4 {[%clk
0:57:33]} 31... Bg5 {[%clk 0:06:36]} 32. c5 {[%clk 0:57:23]} 32... Rb8 {[%clk
0:04:11]} 33. c6 {[%clk 0:57:27]} 33... Rc8 {[%clk 0:03:44]} 34. Re6 {[%clk
0:57:26]} 34... h4 {[%clk 0:02:08]} 35. c7 {[%clk 0:57:21]} 35... h3 {[%clk
0:00:38]} 36. Rd6 {[%clk 0:57:44]} 36... Bxf6 {[%clk 0:00:34]} 37. Rxf6+ {[%clk
0:58:09]} 37... Kg7 {[%clk 0:00:58]} 38. Rc6 {[%clk 0:58:37]} 38... hxg2 {[%clk
0:00:41]} 39. Nb6 {[%clk 0:58:53]} 1-0

[Variant "Standard"]
[Site "Europe Echecs"]

[Event "Championnat du monde jeunes U12F"]
[Date "2024.11.23"]
[White "Chichinadze, Anastasia"]
[Black "Ahmed Mohamed, Zakaa"]
[WhiteElo "1682"]
[BlackElo "1866"]
[Round "8.21"]
[Result "1/2-1/2"]
[TimeControl "5400+30"]

1. e4 {[%clk 1:28:31]} 1... e5 {[%clk 1:30:55]} 2. Nf3 {[%clk 1:28:59]} 2... d6
{[%clk 1:31:19]} 3. d4 {[%clk 1:28:31]} 3... exd4 {[%clk 1:31:43]} 4. Nxd4
{[%clk 1:28:57]} 4... Nf6 {[%clk 1:32:05]} 5. Nc3 {[%clk 1:29:20]} 5... Be7
{[%clk 1:32:30]} 6. Bc4 {[%clk 1:29:22]} 6... O-O {[%clk 1:32:52]} 7. O-O {[%clk
1:29:20]} 7... Nxe4 {[%clk 1:30:57]} 8. Nxe4 {[%clk 1:29:37]} 8... d5 {[%clk
1:31:21]} 9. Bd3 {[%clk 1:27:39]} 9... dxe4 {[%clk 1:31:41]} 10. Bxe4 {[%clk
1:28:04]} 10... Bf6 {[%clk 1:30:13]} 11. Nb5 {[%clk 1:18:03]} 11... a6 {[%clk
1:25:11]} 12. Qxd8 {[%clk 1:18:21]} 12... Bxd8 {[%clk 1:25:35]} 13. Nc3 {[%clk
1:18:21]} 13... Nd7 {[%clk 1:22:27]} 14. Bf4 {[%clk 1:10:33]} 14... Nc5 {[%clk
1:17:39]} 15. Bf3 {[%clk 0:56:45]} 15... Bf5 {[%clk 1:08:58]} 16. Be3 {[%clk
0:49:13]} 16... Ne6 {[%clk 0:56:30]} 17. Bxb7 {[%clk 0:47:52]} 17... Rb8 {[%clk
0:56:49]} 18. Bxa6 {[%clk 0:47:44]} 18... Rxb2 {[%clk 0:56:30]} 19. Bd3 {[%clk
0:48:01]} 19... Bxd3 {[%clk 0:56:52]} 20. cxd3 {[%clk 0:48:27]} 20... Be7 {[%clk
0:54:37]} 21. Nd5 {[%clk 0:26:42]} 21... Bd6 {[%clk 0:52:33]} 22. f4 {[%clk
0:15:58]} 22... c6 {[%clk 0:41:53]} 23. Nc3 {[%clk 0:13:42]} 23... Bb4 {[%clk
0:40:00]} 24. Nd1 {[%clk 0:06:53]} 24... Re2 {[%clk 0:38:03]} 25. a3 {[%clk
0:05:03]} 1/2-1/2

[Variant "Standard"]
[Site "Europe Echecs"]

[Event "Championnat du monde jeunes U12F"]
[Date "2024.11.23"]
[White "Smirnova, Viktoria A"]
[Black "Sunea, Sara Maria"]
[WhiteElo "1658"]
[BlackElo "1823"]
[Round "8.22"]
[Result "1-0"]
[TimeControl "5400+30"]

1. d4 {[%clk 1:30:59]} 1... Nf6 {[%clk 1:30:47]} 2. c4 {[%clk 1:31:04]} 2... c5
{[%clk 1:31:03]} 3. d5 {[%clk 1:31:27]} 3... e6 {[%clk 1:31:26]} 4. Nc3 {[%clk
1:31:40]} 4... exd5 {[%clk 1:31:52]} 5. cxd5 {[%clk 1:32:01]} 5... d6 {[%clk
1:32:17]} 6. e4 {[%clk 1:32:07]} 6... g6 {[%clk 1:32:43]} 7. Bd3 {[%clk
1:32:28]} 7... Bg7 {[%clk 1:32:53]} 8. Nge2 {[%clk 1:32:44]} 8... O-O {[%clk
1:31:40]} 9. O-O {[%clk 1:33:07]} 9... Re8 {[%clk 1:26:38]} 10. Ng3 {[%clk
1:33:24]} 10... Ng4 {[%clk 1:20:18]} 11. h3 {[%clk 1:13:39]} 11... Ne5 {[%clk
1:17:24]} 12. Be2 {[%clk 1:10:03]} 12... a6 {[%clk 1:10:39]} 13. a4 {[%clk
1:10:04]} 13... b6 {[%clk 1:07:26]} 14. Qc2 {[%clk 1:08:53]} 14... Qc7 {[%clk
1:05:24]} 15. b3 {[%clk 1:05:55]} 15... h5 {[%clk 0:57:58]} 16. f4 {[%clk
0:59:20]} 16... Ned7 {[%clk 0:57:36]} 17. Bd3 {[%clk 0:59:05]} 17... Nf8 {[%clk
0:52:57]} 18. Bb2 {[%clk 0:53:02]} 18... Nbd7 {[%clk 0:51:19]} 19. Nd1 {[%clk
0:46:17]} 19... Nf6 {[%clk 0:49:15]} 20. Ne3 {[%clk 0:38:18]} 20... Bb7 {[%clk
0:48:37]} 21. Rae1 {[%clk 0:32:56]} 21... Rad8 {[%clk 0:42:47]} 22. f5 {[%clk
0:27:02]} 22... N8d7 {[%clk 0:37:09]} 23. fxg6 {[%clk 0:20:24]} 23... fxg6
{[%clk 0:37:26]} 24. Nc4 {[%clk 0:19:49]} 24... Ne5 {[%clk 0:32:29]} 25. Nxe5
{[%clk 0:19:37]} 25... dxe5 {[%clk 0:32:28]} 26. Bc4 {[%clk 0:19:42]} 26... Kh8
{[%clk 0:29:58]} 27. Rf2 {[%clk 0:19:08]} 27... Qd6 {[%clk 0:23:29]} 28. Qd3
{[%clk 0:17:31]} 28... Ra8 {[%clk 0:22:49]} 29. Ref1 {[%clk 0:17:29]} 29... Rf8
{[%clk 0:20:30]} 30. Qe3 {[%clk 0:16:48]} 30... Kh7 {[%clk 0:18:41]} 31. Bc1
{[%clk 0:12:53]} 31... Nd7 {[%clk 0:17:01]} 32. Rxf8 {[%clk 0:12:31]} 32... Rxf8
{[%clk 0:17:10]} 33. Rxf8 {[%clk 0:12:52]} 33... Qxf8 {[%clk 0:16:07]} 34. Qf2
{[%clk 0:13:07]} 34... Nf6 {[%clk 0:11:29]} 35. Qe2 {[%clk 0:13:01]} 35... Qc8
{[%clk 0:10:56]} 36. Bg5 {[%clk 0:12:49]} 36... a5 {[%clk 0:09:31]} 37. Qf3
{[%clk 0:12:34]} 37... Qf8 {[%clk 0:08:55]} 38. Nf1 {[%clk 0:12:29]} 38... Bc8
{[%clk 0:06:58]} 39. Bd3 {[%clk 0:11:54]} 39... Kg8 {[%clk 0:04:47]} 40. Ne3
{[%clk 0:11:45]} 40... Nd7 {[%clk 0:01:31]} 41. Qxf8+ {[%clk 0:11:50]} 41...
Nxf8 {[%clk 0:01:35]} 42. Bd8 {[%clk 0:12:02]} 42... Bh6 {[%clk 0:01:34]} 43.
Kf2 {[%clk 0:12:03]} 43... Nd7 {[%clk 0:00:51]} 44. Bb5 {[%clk 0:12:15]} 44...
Kf7 {[%clk 0:00:38]} 45. Bxd7 {[%clk 0:12:22]} 45... Bxd7 {[%clk 0:01:07]} 46.
Bxb6 {[%clk 0:12:01]} 46... Bf8 {[%clk 0:01:07]} 47. Nc4 {[%clk 0:12:11]} 47...
Kf6 {[%clk 0:01:03]} 48. Bxa5 {[%clk 0:12:28]} 48... g5 {[%clk 0:00:55]} 49. Bc3
{[%clk 0:12:40]} 49... Be8 {[%clk 0:00:44]} 50. Nxe5 {[%clk 0:12:16]} 50... Ke7
{[%clk 0:00:54]} 51. Nd3 {[%clk 0:12:11]} 51... Kd7 {[%clk 0:00:56]} 52. Bd2
{[%clk 0:12:04]} 52... Bg6 {[%clk 0:01:14]} 53. Ne5+ {[%clk 0:12:24]} 1-0

[Variant "Standard"]
[Site "Europe Echecs"]

[Event "Championnat du monde jeunes U12F"]
[Date "2024.11.23"]
[White "Anu, Bayart-Uchral"]
[Black "Rzadkowska, Kaja"]
[WhiteElo "1624"]
[BlackElo "1798"]
[Round "8.23"]
[Result "0-1"]
[TimeControl "5400+30"]

1. Nf3 {[%clk 1:30:56]} 1... Nf6 {[%clk 1:30:53]} 2. g3 {[%clk 1:31:09]} 2... c5
{[%clk 1:31:04]} 3. Bg2 {[%clk 1:31:23]} 3... d5 {[%clk 1:30:52]} 4. d3 {[%clk
1:31:28]} 4... g6 {[%clk 1:30:49]} 5. O-O {[%clk 1:31:43]} 5... Bg7 {[%clk
1:31:12]} 6. Nbd2 {[%clk 1:31:49]} 6... O-O {[%clk 1:31:31]} 7. e4 {[%clk
1:31:39]} 7... Nc6 {[%clk 1:31:05]} 8. Re1 {[%clk 1:30:55]} 8... e5 {[%clk
1:31:04]} 9. c3 {[%clk 1:30:10]} 9... h6 {[%clk 1:28:22]} 10. Qc2 {[%clk
1:28:55]} 10... Re8 {[%clk 1:28:01]} 11. Nf1 {[%clk 1:25:15]} 11... Be6 {[%clk
1:23:33]} 12. Bd2 {[%clk 1:22:27]} 12... Qd7 {[%clk 1:17:01]} 13. h4 {[%clk
1:20:52]} 13... Rad8 {[%clk 1:15:06]} 14. Rad1 {[%clk 1:20:02]} 14... Qc8 {[%clk
1:11:31]} 15. N3h2 {[%clk 1:13:13]} 15... Rd7 {[%clk 1:01:33]} 16. Ne3 {[%clk
0:48:58]} 16... Red8 {[%clk 0:57:13]} 17. Bc1 {[%clk 0:43:21]} 17... b6 {[%clk
0:47:41]} 18. Bf3 {[%clk 0:36:54]} 18... Rc7 {[%clk 0:33:11]} 19. exd5 {[%clk
0:07:12]} 19... Nxd5 {[%clk 0:33:04]} 20. Nxd5 {[%clk 0:07:06]} 20... Bxd5
{[%clk 0:33:23]} 21. Bxd5 {[%clk 0:07:30]} 21... Rxd5 {[%clk 0:33:44]} 22. Be3
{[%clk 0:06:48]} 22... Qf5 {[%clk 0:31:12]} 23. Rd2 {[%clk 0:05:10]} 23... Rcd7
{[%clk 0:29:35]} 24. Red1 {[%clk 0:05:34]} 24... Qe6 {[%clk 0:28:12]} 25. a3
{[%clk 0:05:21]} 25... a5 {[%clk 0:24:40]} 26. Nf3 {[%clk 0:01:22]} 26... f5
{[%clk 0:23:08]} 27. Ne1 {[%clk 0:01:29]} 27... Qf6 {[%clk 0:17:36]} 28. Ng2
{[%clk 0:01:35]} 28... g5 {[%clk 0:14:38]} 29. hxg5 {[%clk 0:02:00]} 29... hxg5
{[%clk 0:15:06]} 30. f4 {[%clk 0:02:20]} 30... exf4 {[%clk 0:14:45]} 31. gxf4
{[%clk 0:02:43]} 31... g4 {[%clk 0:14:29]} 32. Kf2 {[%clk 0:01:24]} 32... Qd6
{[%clk 0:11:05]} 33. Ne1 {[%clk 0:00:49]} 33... Re7 {[%clk 0:08:59]} 34. Ng2
{[%clk 0:00:57]} 34... Bh6 {[%clk 0:04:05]} 35. c4 {[%clk 0:00:55]} 35... Rd4
{[%clk 0:04:09]} 36. Bxd4 {[%clk 0:00:57]} 36... Nxd4 {[%clk 0:04:15]} 37. Qa4
{[%clk 0:01:18]} 37... Bxf4 {[%clk 0:04:22]} 38. b4 {[%clk 0:00:43]} 38... Bxd2
{[%clk 0:03:52]} 39. Rxd2 {[%clk 0:01:11]} 39... Nf3 {[%clk 0:03:22]} 40. Re2
{[%clk 0:01:23]} 40... Qd4+ {[%clk 0:03:39]} 41. Ne3 {[%clk 0:01:01]} 41... f4
{[%clk 0:03:53]} 42. Qc6 {[%clk 0:01:18]} 42... Rxe3 {[%clk 0:03:35]} 43. Qg6+
{[%clk 0:00:49]} 43... Qg7 {[%clk 0:03:14]} 44. Qc6 {[%clk 0:00:55]} 44... Rxe2+
{[%clk 0:03:36]} 45. Kxe2 {[%clk 0:00:34]} 45... Nd4+ {[%clk 0:04:04]} 0-1

[Variant "Standard"]
[Site "Europe Echecs"]